[Event "Titled Tuesday Blitz July 4 Early 2023"]
[White "Legenia, Artem"]
[Black "Janaszak, Dawid"]
[WhiteFideId "14136945"]
[BlackFideId "1119206"]
[WhiteElo "2289"]
[BlackElo "2592"]
[Result "1/2-1/2"]
[Round "1"]
[TimeControl "180+2"]
[Date "2023.07.04"]
[WhiteClock "0:00:37"]
[BlackClock "0:01:15"]
[Board "172"]

1. Nf3 {[%clk 0:02:54]}  g6 {[%clk 0:02:59]} 2. g3 {[%clk 0:02:48]}  Bg7 {[%clk 0:02:59]} 3. Bg2 {[%clk 0:02:45]}  Nf6 {[%clk 0:02:59]} 4. c4 {[%clk 0:02:45]}  O-O {[%clk 0:03:00]} 5. O-O {[%clk 0:02:45]}  c6 {[%clk 0:03:00]} 6. d4 {[%clk 0:02:43]}  d5 {[%clk 0:03:00]} 7. cxd5 {[%clk 0:02:42]}  cxd5 {[%clk 0:03:01]} 8. Nc3 {[%clk 0:02:43]}  Ne4 {[%clk 0:03:01]} 9. Bf4 {[%clk 0:02:39]}  Nxc3 {[%clk 0:03:00]} 10. bxc3 {[%clk 0:02:39]}  Nc6 {[%clk 0:03:01]} 11. Nd2 {[%clk 0:02:33]}  Bf5 {[%clk 0:02:57]} 12. e4 {[%clk 0:02:33]}  dxe4 {[%clk 0:02:57]} 13. Nxe4 {[%clk 0:02:33]}  e5 {[%clk 0:02:51]} 14. dxe5 {[%clk 0:02:27]}  Nxe5 {[%clk 0:02:52]} 15. Bg5 {[%clk 0:02:11]}  f6 {[%clk 0:02:42]} 16. Qxd8 {[%clk 0:02:02]}  Raxd8 {[%clk 0:02:41]} 17. Be3 {[%clk 0:02:03]}  b6 {[%clk 0:02:38]} 18. Rfd1 {[%clk 0:01:54]}  Bg4 {[%clk 0:02:37]} 19. Rd4 {[%clk 0:01:46]}  Nf3+ {[%clk 0:02:36]} 20. Bxf3 {[%clk 0:01:44]}  Bxf3 {[%clk 0:02:37]} 21. Nd2 {[%clk 0:01:35]}  Bc6 {[%clk 0:02:34]} 22. Re1 {[%clk 0:01:34]}  f5 {[%clk 0:02:33]} 23. Rxd8 {[%clk 0:01:34]}  Rxd8 {[%clk 0:02:34]} 24. c4 {[%clk 0:01:31]}  Bc3 {[%clk 0:02:33]} 25. Rc1 {[%clk 0:01:22]}  Bxd2 {[%clk 0:02:32]} 26. Rd1 {[%clk 0:01:22]}  Rc8 {[%clk 0:02:15]} 27. Rxd2 {[%clk 0:01:20]}  Be4 {[%clk 0:02:15]} 28. Rd4 {[%clk 0:01:15]}  Kf7 {[%clk 0:02:16]} 29. Kf1 {[%clk 0:01:14]}  Ke6 {[%clk 0:02:15]} 30. Ke1 {[%clk 0:01:15]}  Rc6 {[%clk 0:02:12]} 31. Kd2 {[%clk 0:01:15]}  a6 {[%clk 0:02:07]} 32. Kc3 {[%clk 0:01:13]}  Rc8 {[%clk 0:02:03]} 33. Kb4 {[%clk 0:01:12]}  Rc6 {[%clk 0:02:00]} 34. a4 {[%clk 0:01:09]}  Bf3 {[%clk 0:01:58]} 35. a5 {[%clk 0:01:06]}  bxa5+ {[%clk 0:01:55]} 36. Kxa5 {[%clk 0:01:07]}  Be2 {[%clk 0:01:55]} 37. Kb4 {[%clk 0:01:04]}  Rc8 {[%clk 0:01:51]} 38. Bf4 {[%clk 0:01:01]}  Rc6 {[%clk 0:01:51]} 39. c5 {[%clk 0:00:59]}  Bb5 {[%clk 0:01:47]} 40. Rd6+ {[%clk 0:00:58]}  Rxd6 {[%clk 0:01:46]} 41. Bxd6 {[%clk 0:00:54]}  Kd5 {[%clk 0:01:46]} 42. h4 {[%clk 0:00:52]}  Ke4 {[%clk 0:01:44]} 43. Ka5 {[%clk 0:00:50]}  Kd5 {[%clk 0:01:30]} 44. Kb6 {[%clk 0:00:50]}  h6 {[%clk 0:01:27]} 45. Bf8 {[%clk 0:00:50]}  h5 {[%clk 0:01:26]} 46. Bh6 {[%clk 0:00:49]}  Be8 {[%clk 0:01:23]} 47. Bf8 {[%clk 0:00:49]}  Bb5 {[%clk 0:01:23]} 48. Bh6 {[%clk 0:00:48]}  Bd7 {[%clk 0:01:20]} 49. Bf4 {[%clk 0:00:47]}  a5 {[%clk 0:01:17]} 50. Kxa5 {[%clk 0:00:41]}  Kxc5 {[%clk 0:01:17]} 51. Be3+ {[%clk 0:00:42]}  Kd5 {[%clk 0:01:17]} 52. Kb6 {[%clk 0:00:42]}  Ba4 {[%clk 0:01:16]} 53. Kc7 {[%clk 0:00:42]}  Ke4 {[%clk 0:01:15]} 54. Kd6 {[%clk 0:00:41]}  Kf3 {[%clk 0:01:15]} 55. Ke7 {[%clk 0:00:39]}  Bc2 {[%clk 0:01:10]} 56. Bf4 {[%clk 0:00:33]}  Kxf2 {[%clk 0:01:09]} 57. Kf6 {[%clk 0:00:34]}  Kf3 {[%clk 0:01:09]} 58. Kxg6 {[%clk 0:00:34]}  Kg4 {[%clk 0:01:10]} 59. Kf6 {[%clk 0:00:34]}  Bd3 {[%clk 0:01:09]} 60. Kg6 {[%clk 0:00:34]}  Be4 {[%clk 0:01:10]} 61. Kf6 {[%clk 0:00:34]}  Bd3 {[%clk 0:01:10]} 62. Kg6 {[%clk 0:00:35]}  Be4 {[%clk 0:01:11]} 63. Kf7 {[%clk 0:00:34]}  Bd3 {[%clk 0:01:11]} 64. Kg7 {[%clk 0:00:35]}  Be4 {[%clk 0:01:12]} 65. Kf8 {[%clk 0:00:35]}  Bd3 {[%clk 0:01:12]} 66. Kg7 {[%clk 0:00:36]}  Be4 {[%clk 0:01:13]} 67. Kf8 {[%clk 0:00:36]}  Bd3 {[%clk 0:01:13]} 68. Ke7 {[%clk 0:00:37]}  Be4 {[%clk 0:01:14]} 69. Kf6 {[%clk 0:00:37]}  Bd3 {[%clk 0:01:15]} 1/2-1/2


[Site "https://www.chess.com"]

[Event "Titled Tuesday Blitz July 4 Early 2023"]
[White "agvania123"]
[Black "Arat, Ufuk Sezen"]
[BlackFideId "6309089"]
[WhiteElo "2278"]
[BlackElo "2586"]
[Result "0-1"]
[Round "1"]
[TimeControl "180+2"]
[Date "2023.07.04"]
[WhiteClock "0:00:06"]
[BlackClock "0:00:28"]
[Board "176"]

1. c4 {[%clk 0:02:58]}  e6 {[%clk 0:02:57]} 2. Nc3 {[%clk 0:02:57]}  d5 {[%clk 0:02:57]} 3. e3 {[%clk 0:02:54]}  Nf6 {[%clk 0:02:57]} 4. Nf3 {[%clk 0:02:54]}  c5 {[%clk 0:02:55]} 5. cxd5 {[%clk 0:02:54]}  exd5 {[%clk 0:02:56]} 6. d4 {[%clk 0:02:54]}  Nc6 {[%clk 0:02:56]} 7. Bb5 {[%clk 0:02:53]}  Be7 {[%clk 0:02:51]} 8. O-O {[%clk 0:02:52]}  O-O {[%clk 0:02:51]} 9. b3 {[%clk 0:02:47]}  Ne4 {[%clk 0:02:41]} 10. Bb2 {[%clk 0:02:37]}  Nxc3 {[%clk 0:02:40]} 11. Bxc3 {[%clk 0:02:38]}  Qb6 {[%clk 0:02:41]} 12. Bxc6 {[%clk 0:02:36]}  bxc6 {[%clk 0:02:38]} 13. dxc5 {[%clk 0:02:36]}  Bxc5 {[%clk 0:02:37]} 14. Bd4 {[%clk 0:02:36]}  Bg4 {[%clk 0:02:26]} 15. Bxc5 {[%clk 0:02:30]}  Qxc5 {[%clk 0:02:26]} 16. Qd4 {[%clk 0:02:28]}  Qxd4 {[%clk 0:02:25]} 17. Nxd4 {[%clk 0:02:28]}  c5 {[%clk 0:02:25]} 18. Nb5 {[%clk 0:02:26]}  Be2 {[%clk 0:02:24]} 19. Nc7 {[%clk 0:02:25]}  Bxf1 {[%clk 0:02:05]} 20. Nxa8 {[%clk 0:02:25]}  Bd3 {[%clk 0:01:42]} 21. Nc7 {[%clk 0:02:21]}  Rd8 {[%clk 0:01:41]} 22. Rd1 {[%clk 0:02:11]}  c4 {[%clk 0:01:40]} 23. Nb5 {[%clk 0:01:50]}  Rb8 {[%clk 0:01:13]} 24. Nd4 {[%clk 0:01:28]}  h5 {[%clk 0:00:56]} 25. f3 {[%clk 0:01:26]}  a5 {[%clk 0:00:52]} 26. Kf2 {[%clk 0:01:21]}  a4 {[%clk 0:00:51]} 27. bxc4 {[%clk 0:01:03]}  Rb2+ {[%clk 0:00:48]} 28. Kg3 {[%clk 0:01:03]}  dxc4 {[%clk 0:00:49]} 29. a3 {[%clk 0:00:52]}  h4+ {[%clk 0:00:42]} 30. Kh3 {[%clk 0:00:47]}  Ra2 {[%clk 0:00:37]} 31. Nb5 {[%clk 0:00:39]}  Bf5+ {[%clk 0:00:36]} 32. Kxh4 {[%clk 0:00:37]}  Rxg2 {[%clk 0:00:37]} 33. Rc1 {[%clk 0:00:26]}  g5+ {[%clk 0:00:34]} 34. Kh5 {[%clk 0:00:24]}  Bg6+ {[%clk 0:00:35]} 35. Kh6 {[%clk 0:00:24]}  Rxh2+ {[%clk 0:00:32]} 36. Kxg5 {[%clk 0:00:24]}  Rh5+ {[%clk 0:00:33]} 37. Kf6 {[%clk 0:00:23]}  Rxb5 {[%clk 0:00:34]} 38. Rxc4 {[%clk 0:00:23]}  Rf5+ {[%clk 0:00:34]} 39. Ke7 {[%clk 0:00:22]}  Re5+ {[%clk 0:00:32]} 40. Kf6 {[%clk 0:00:22]}  Re6+ {[%clk 0:00:32]} 41. Kg5 {[%clk 0:00:22]}  Rxe3 {[%clk 0:00:32]} 42. Rxa4 {[%clk 0:00:19]}  Rxf3 {[%clk 0:00:33]} 43. Kh6 {[%clk 0:00:18]}  Rh3+ {[%clk 0:00:33]} 44. Kg5 {[%clk 0:00:18]}  Rh5+ {[%clk 0:00:33]} 45. Kf6 {[%clk 0:00:17]}  Rf5+ {[%clk 0:00:33]} 46. Ke7 {[%clk 0:00:17]}  Rf1 {[%clk 0:00:31]} 47. Rh4 {[%clk 0:00:14]}  Kg7 {[%clk 0:00:31]} 48. a4 {[%clk 0:00:14]}  Re1+ {[%clk 0:00:32]} 49. Kd6 {[%clk 0:00:14]}  f5 {[%clk 0:00:32]} 50. a5 {[%clk 0:00:13]}  Ra1 {[%clk 0:00:33]} 51. Ke5 {[%clk 0:00:05]}  Rxa5+ {[%clk 0:00:32]} 52. Ke6 {[%clk 0:00:05]}  Ra3 {[%clk 0:00:29]} 53. Rc4 {[%clk 0:00:04]}  Re3+ {[%clk 0:00:29]} 54. Kd6 {[%clk 0:00:03]}  Kf6 {[%clk 0:00:29]} 55. Rc6 {[%clk 0:00:03]}  Kg5 {[%clk 0:00:29]} 56. Kd5 {[%clk 0:00:04]}  f4 {[%clk 0:00:28]} 57. Kd4 {[%clk 0:00:05]}  Rd3+ {[%clk 0:00:27]} 58. Kc4 {[%clk 0:00:04]}  Rd8 {[%clk 0:00:28]} 59. Rc5+ {[%clk 0:00:05]}  Kg4 {[%clk 0:00:28]} 60. Kc3 {[%clk 0:00:05]}  f3 {[%clk 0:00:28]} 61. Kb2 {[%clk 0:00:06]}  f2 {[%clk 0:00:28]} 62. Ka2 {[%clk 0:00:07]}  f1=Q {[%clk 0:00:28]} 63. Rc3 {[%clk 0:00:06]}  Ra8+ {[%clk 0:00:28]} 64. Ra3 {[%clk 0:00:06]}  Qb1# {[%clk 0:00:28]} 0-1


[Site "https://www.chess.com"]

[Event "Titled Tuesday Blitz July 4 Early 2023"]
[White "Ezat, Mohamed"]
[Black "Mindhunter08"]
[WhiteFideId "10600906"]
[WhiteElo "2584"]
[BlackElo "2275"]
[Result "1-0"]
[Round "1"]
[TimeControl "180+2"]
[Date "2023.07.04"]
[WhiteClock "0:00:07"]
[BlackClock "0:00:04"]
[Board "177"]

1. d4 {[%clk 0:02:40]}  d5 {[%clk 0:03:00]} 2. c4 {[%clk 0:02:35]}  c6 {[%clk 0:02:59]} 3. Nc3 {[%clk 0:02:33]}  e6 {[%clk 0:02:59]} 4. e4 {[%clk 0:02:30]}  dxe4 {[%clk 0:02:58]} 5. Nxe4 {[%clk 0:02:28]}  c5 {[%clk 0:02:59]} 6. d5 {[%clk 0:02:21]}  exd5 {[%clk 0:02:59]} 7. cxd5 {[%clk 0:02:20]}  Nf6 {[%clk 0:02:59]} 8. Nxf6+ {[%clk 0:01:59]}  Qxf6 {[%clk 0:03:00]} 9. Nf3 {[%clk 0:01:59]}  Bg4 {[%clk 0:02:23]} 10. Qa4+ {[%clk 0:01:51]}  Bd7 {[%clk 0:02:23]} 11. Bb5 {[%clk 0:01:51]}  a6 {[%clk 0:01:36]} 12. Bxd7+ {[%clk 0:01:50]}  Nxd7 {[%clk 0:01:36]} 13. O-O {[%clk 0:01:50]}  h6 {[%clk 0:01:12]} 14. Re1+ {[%clk 0:01:47]}  Be7 {[%clk 0:01:05]} 15. Ne5 {[%clk 0:01:37]}  O-O-O {[%clk 0:00:53]} 16. Nc6 {[%clk 0:01:20]}  bxc6 {[%clk 0:00:24]} 17. Qxa6+ {[%clk 0:01:19]}  Kc7 {[%clk 0:00:24]} 18. dxc6 {[%clk 0:00:47]}  Qxc6 {[%clk 0:00:19]} 19. Qa7+ {[%clk 0:00:29]}  Qb7 {[%clk 0:00:14]} 20. Bf4+ {[%clk 0:00:26]}  Kc8 {[%clk 0:00:13]} 21. Qxb7+ {[%clk 0:00:25]}  Kxb7 {[%clk 0:00:14]} 22. Rxe7 {[%clk 0:00:25]}  Kc6 {[%clk 0:00:10]} 23. Rxf7 {[%clk 0:00:18]}  Rhf8 {[%clk 0:00:11]} 24. Rxf8 {[%clk 0:00:17]}  Rxf8 {[%clk 0:00:12]} 25. Be3 {[%clk 0:00:18]}  Rb8 {[%clk 0:00:09]} 26. b3 {[%clk 0:00:17]}  Ra8 {[%clk 0:00:09]} 27. h4 {[%clk 0:00:15]}  Kb5 {[%clk 0:00:08]} 28. Rd1 {[%clk 0:00:13]}  Nb6 {[%clk 0:00:07]} 29. Rd2 {[%clk 0:00:13]}  Kc6 {[%clk 0:00:06]} 30. Rc2 {[%clk 0:00:13]}  Nd7 {[%clk 0:00:06]} 31. Bxc5 {[%clk 0:00:12]}  Nxc5 {[%clk 0:00:06]} 32. b4 {[%clk 0:00:12]}  Kb6 {[%clk 0:00:00]} 33. bxc5+ {[%clk 0:00:07]}  Kc6 {[%clk 0:00:01]} 34. g3 {[%clk 0:00:08]}  Ra4 {[%clk 0:00:01]} 35. Kg2 {[%clk 0:00:07]}  Ra3 {[%clk 0:00:01]} 36. Rc1 {[%clk 0:00:07]}  h5 {[%clk 0:00:02]} 37. Rc2 {[%clk 0:00:07]}  Ra4 {[%clk 0:00:02]} 38. f3 {[%clk 0:00:07]}  g6 {[%clk 0:00:03]} 39. g4 {[%clk 0:00:07]}  hxg4 {[%clk 0:00:03]} 40. fxg4 {[%clk 0:00:08]}  Rxg4+ {[%clk 0:00:04]} 41. Kh3 {[%clk 0:00:08]}  Rd4 {[%clk 0:00:04]} 42. Rg2 {[%clk 0:00:07]}  Rd3+ {[%clk 0:00:04]} 43. Rg3 {[%clk 0:00:07]}  Rd5 {[%clk 0:00:05]} 44. Rxg6+ {[%clk 0:00:07]}  Kxc5 {[%clk 0:00:06]} 45. Rg5 {[%clk 0:00:08]}  Rxg5 {[%clk 0:00:05]} 46. hxg5 {[%clk 0:00:08]}  Kd5 {[%clk 0:00:05]} 47. a4 {[%clk 0:00:07]}  Kc5 {[%clk 0:00:06]} 48. g6 {[%clk 0:00:07]}  Kb6 {[%clk 0:00:04]} 49. g7 {[%clk 0:00:07]} 1-0


[Site "https://www.chess.com"]

[Event "Titled Tuesday Blitz July 4 Early 2023"]
[White "SicilianPanzer"]
[Black "Kim, Sergey"]
[BlackFideId "13700570"]
[WhiteElo "2247"]
[BlackElo "2576"]
[Result "1/2-1/2"]
[Round "1"]
[TimeControl "180+2"]
[Date "2023.07.04"]
[WhiteClock "0:00:04"]
[BlackClock "0:00:21"]
[Board "184"]

1. e4 {[%clk 0:03:00]}  e5 {[%clk 0:03:00]} 2. Nc3 {[%clk 0:02:59]}  Nf6 {[%clk 0:02:59]} 3. Bc4 {[%clk 0:02:58]}  Bc5 {[%clk 0:02:59]} 4. d3 {[%clk 0:02:57]}  Nc6 {[%clk 0:02:59]} 5. f4 {[%clk 0:02:56]}  d6 {[%clk 0:03:00]} 6. Nf3 {[%clk 0:02:56]}  Bg4 {[%clk 0:02:59]} 7. h3 {[%clk 0:02:51]}  Bxf3 {[%clk 0:02:59]} 8. Qxf3 {[%clk 0:02:50]}  Nd4 {[%clk 0:02:59]} 9. Qd1 {[%clk 0:02:50]}  c6 {[%clk 0:02:53]} 10. fxe5 {[%clk 0:02:30]}  dxe5 {[%clk 0:02:53]} 11. Bg5 {[%clk 0:02:29]}  Qd6 {[%clk 0:02:37]} 12. a3 {[%clk 0:02:22]}  b5 {[%clk 0:02:33]} 13. Ba2 {[%clk 0:02:20]}  h6 {[%clk 0:02:30]} 14. Bh4 {[%clk 0:02:14]}  a5 {[%clk 0:02:20]} 15. Rf1 {[%clk 0:01:55]}  Ra7 {[%clk 0:02:00]} 16. Ne2 {[%clk 0:01:47]}  Nh7 {[%clk 0:01:43]} 17. Nxd4 {[%clk 0:01:21]}  Bxd4 {[%clk 0:01:43]} 18. c3 {[%clk 0:01:20]}  Be3 {[%clk 0:01:36]} 19. Qf3 {[%clk 0:01:04]}  Bg5 {[%clk 0:01:23]} 20. Bxf7+ {[%clk 0:00:29]}  Kd8 {[%clk 0:01:23]} 21. Qf2 {[%clk 0:00:16]}  Rxf7 {[%clk 0:01:11]} 22. Qxf7 {[%clk 0:00:12]}  Bxh4+ {[%clk 0:01:11]} 23. Kd2 {[%clk 0:00:11]}  Bf6 {[%clk 0:01:07]} 24. Qa7 {[%clk 0:00:09]}  Re8 {[%clk 0:00:57]} 25. Qxa5+ {[%clk 0:00:08]}  Qc7 {[%clk 0:00:57]} 26. Qb4 {[%clk 0:00:08]}  Kd7 {[%clk 0:00:50]} 27. Rad1 {[%clk 0:00:08]}  Qd6 {[%clk 0:00:50]} 28. Qb3 {[%clk 0:00:07]}  Qe6 {[%clk 0:00:50]} 29. Qc2 {[%clk 0:00:07]}  Bg5+ {[%clk 0:00:49]} 30. Ke2 {[%clk 0:00:07]}  Nf6 {[%clk 0:00:49]} 31. g4 {[%clk 0:00:05]}  h5 {[%clk 0:00:46]} 32. d4 {[%clk 0:00:05]}  exd4 {[%clk 0:00:42]} 33. Rxd4+ {[%clk 0:00:06]}  Kc7 {[%clk 0:00:42]} 34. Rf5 {[%clk 0:00:05]}  Nxe4 {[%clk 0:00:36]} 35. Kd1 {[%clk 0:00:05]}  g6 {[%clk 0:00:34]} 36. Rxg5 {[%clk 0:00:02]}  Nxg5 {[%clk 0:00:34]} 37. Qf2 {[%clk 0:00:02]}  Ne4 {[%clk 0:00:31]} 38. Qf4+ {[%clk 0:00:02]}  Qe5 {[%clk 0:00:31]} 39. Rxe4 {[%clk 0:00:02]}  Qxf4 {[%clk 0:00:29]} 40. Rxf4 {[%clk 0:00:03]}  Kd6 {[%clk 0:00:29]} 41. gxh5 {[%clk 0:00:03]}  gxh5 {[%clk 0:00:29]} 42. Rf5 {[%clk 0:00:04]}  Rg8 {[%clk 0:00:26]} 43. Kd2 {[%clk 0:00:04]}  Rg2+ {[%clk 0:00:27]} 44. Kc1 {[%clk 0:00:04]}  h4 {[%clk 0:00:26]} 45. Rf4 {[%clk 0:00:04]}  Rg1+ {[%clk 0:00:26]} 46. Kc2 {[%clk 0:00:03]}  Rg2+ {[%clk 0:00:26]} 47. Kb1 {[%clk 0:00:04]}  Rg1+ {[%clk 0:00:26]} 48. Ka2 {[%clk 0:00:04]}  Kd5 {[%clk 0:00:27]} 49. Rxh4 {[%clk 0:00:04]}  c5 {[%clk 0:00:27]} 50. Rh5+ {[%clk 0:00:05]}  Kc4 {[%clk 0:00:27]} 51. Rh4+ {[%clk 0:00:03]}  Kd3 {[%clk 0:00:26]} 52. Rh5 {[%clk 0:00:03]}  Kc4 {[%clk 0:00:27]} 53. Rh4+ {[%clk 0:00:02]}  Kd3 {[%clk 0:00:27]} 54. Rg4 {[%clk 0:00:03]}  Rh1 {[%clk 0:00:26]} 55. h4 {[%clk 0:00:03]}  Rh2 {[%clk 0:00:26]} 56. Rg3+ {[%clk 0:00:04]}  Kc4 {[%clk 0:00:26]} 57. Rg4+ {[%clk 0:00:04]}  Kd3 {[%clk 0:00:26]} 58. a4 {[%clk 0:00:04]}  bxa4 {[%clk 0:00:23]} 59. Rxa4 {[%clk 0:00:05]}  c4 {[%clk 0:00:24]} 60. Ka3 {[%clk 0:00:03]}  Rxh4 {[%clk 0:00:23]} 61. b3 {[%clk 0:00:03]}  Kxc3 {[%clk 0:00:20]} 62. Rxc4+ {[%clk 0:00:03]}  Rxc4 {[%clk 0:00:20]} 63. bxc4 {[%clk 0:00:04]}  Kxc4 {[%clk 0:00:21]} 1/2-1/2


[Site "https://www.chess.com"]

[Event "Titled Tuesday Blitz July 4 Early 2023"]
[White "Krstulovic, Alex"]
[Black "Putri, Regita Desyari"]
[WhiteFideId "760056"]
[BlackFideId "7109083"]
[WhiteElo "2572"]
[BlackElo "2247"]
[Result "1-0"]
[Round "1"]
[TimeControl "180+2"]
[Date "2023.07.04"]
[WhiteClock "0:01:56"]
[BlackClock "0:00:18"]
[Board "185"]

1. d4 {[%clk 0:02:57]}  Nf6 {[%clk 0:02:59]} 2. c4 {[%clk 0:02:55]}  e6 {[%clk 0:02:57]} 3. Nf3 {[%clk 0:02:54]}  b6 {[%clk 0:02:55]} 4. Bf4 {[%clk 0:02:54]}  Bb7 {[%clk 0:02:50]} 5. Nc3 {[%clk 0:02:54]}  Bb4 {[%clk 0:02:47]} 6. e3 {[%clk 0:02:54]}  O-O {[%clk 0:02:39]} 7. Rc1 {[%clk 0:02:54]}  d5 {[%clk 0:02:36]} 8. cxd5 {[%clk 0:02:50]}  Nxd5 {[%clk 0:02:35]} 9. Bg3 {[%clk 0:02:50]}  Nd7 {[%clk 0:02:18]} 10. Bd3 {[%clk 0:02:48]}  c5 {[%clk 0:02:16]} 11. O-O {[%clk 0:02:46]}  Bxc3 {[%clk 0:02:06]} 12. bxc3 {[%clk 0:02:37]}  Rc8 {[%clk 0:01:34]} 13. e4 {[%clk 0:02:32]}  Ne7 {[%clk 0:01:27]} 14. Bd6 {[%clk 0:02:31]}  Re8 {[%clk 0:01:25]} 15. e5 {[%clk 0:02:30]}  Nf5 {[%clk 0:01:09]} 16. Qe2 {[%clk 0:02:24]}  Nxd6 {[%clk 0:01:06]} 17. exd6 {[%clk 0:02:23]}  Bxf3 {[%clk 0:00:38]} 18. Qxf3 {[%clk 0:02:21]}  e5 {[%clk 0:00:39]} 19. Bb5 {[%clk 0:02:02]}  e4 {[%clk 0:00:30]} 20. Qh3 {[%clk 0:02:01]}  Nf6 {[%clk 0:00:21]} 21. Bxe8 {[%clk 0:01:58]}  Qxd6 {[%clk 0:00:18]} 22. Qxc8 {[%clk 0:01:56]} 1-0


[Site "https://www.chess.com"]

[Event "Titled Tuesday Blitz July 4 Early 2023"]
[White "Peiris, T G M"]
[Black "Frolyanov, Dmitry"]
[WhiteFideId "9901310"]
[BlackFideId "4151976"]
[WhiteElo "2244"]
[BlackElo "2570"]
[Result "0-1"]
[Round "1"]
[TimeControl "180+2"]
[Date "2023.07.04"]
[WhiteClock "0:00:03"]
[BlackClock "0:00:17"]
[Board "186"]

1. e4 {[%clk 0:02:57]}  e5 {[%clk 0:02:59]} 2. f4 {[%clk 0:02:57]}  d5 {[%clk 0:02:58]} 3. exd5 {[%clk 0:02:57]}  exf4 {[%clk 0:02:58]} 4. Nf3 {[%clk 0:02:56]}  Nf6 {[%clk 0:02:57]} 5. d4 {[%clk 0:02:54]}  Nxd5 {[%clk 0:02:45]} 6. Bc4 {[%clk 0:02:39]}  Be7 {[%clk 0:02:37]} 7. Bxd5 {[%clk 0:02:20]}  Qxd5 {[%clk 0:02:35]} 8. O-O {[%clk 0:02:20]}  O-O {[%clk 0:02:24]} 9. Bxf4 {[%clk 0:02:19]}  Bg4 {[%clk 0:02:21]} 10. Nc3 {[%clk 0:02:19]}  Qh5 {[%clk 0:01:51]} 11. h3 {[%clk 0:02:18]}  Bxf3 {[%clk 0:01:51]} 12. Qxf3 {[%clk 0:02:17]}  Qxf3 {[%clk 0:01:50]} 13. Rxf3 {[%clk 0:02:18]}  Nc6 {[%clk 0:01:45]} 14. Rd1 {[%clk 0:02:01]}  Bf6 {[%clk 0:01:40]} 15. d5 {[%clk 0:01:40]}  Nd4 {[%clk 0:01:19]} 16. Rf2 {[%clk 0:01:31]}  Nf5 {[%clk 0:01:17]} 17. Rf3 {[%clk 0:01:14]}  Rac8 {[%clk 0:01:08]} 18. Kh1 {[%clk 0:00:57]}  Nd4 {[%clk 0:01:05]} 19. Rf2 {[%clk 0:00:57]}  Rfe8 {[%clk 0:01:05]} 20. Bg3 {[%clk 0:00:49]}  c5 {[%clk 0:00:56]} 21. dxc6 {[%clk 0:00:48]}  Nxc6 {[%clk 0:00:54]} 22. Rfd2 {[%clk 0:00:47]}  Bxc3 {[%clk 0:00:52]} 23. bxc3 {[%clk 0:00:48]}  Na5 {[%clk 0:00:49]} 24. Rd3 {[%clk 0:00:48]}  h6 {[%clk 0:00:46]} 25. Kh2 {[%clk 0:00:44]}  Re6 {[%clk 0:00:42]} 26. Rd7 {[%clk 0:00:43]}  Rxc3 {[%clk 0:00:31]} 27. R1d5 {[%clk 0:00:44]}  b6 {[%clk 0:00:28]} 28. Rd2 {[%clk 0:00:32]}  Rec6 {[%clk 0:00:28]} 29. Rxa7 {[%clk 0:00:29]}  Rxc2 {[%clk 0:00:27]} 30. Rd8+ {[%clk 0:00:28]}  Kh7 {[%clk 0:00:26]} 31. Rxf7 {[%clk 0:00:28]}  Rxa2 {[%clk 0:00:25]} 32. Rd3 {[%clk 0:00:17]}  Rcc2 {[%clk 0:00:23]} 33. Be5 {[%clk 0:00:11]}  Rxg2+ {[%clk 0:00:23]} 34. Kh1 {[%clk 0:00:11]}  Rg5 {[%clk 0:00:23]} 35. Bd4 {[%clk 0:00:10]}  Nc6 {[%clk 0:00:23]} 36. Be3 {[%clk 0:00:09]}  Rb5 {[%clk 0:00:19]} 37. Rd1 {[%clk 0:00:07]}  Ne5 {[%clk 0:00:18]} 38. Rg1 {[%clk 0:00:08]}  Nxf7 {[%clk 0:00:17]} 39. Bd4 {[%clk 0:00:08]}  Ng5 {[%clk 0:00:17]} 40. h4 {[%clk 0:00:08]}  Rb3 {[%clk 0:00:16]} 41. Rg2 {[%clk 0:00:06]}  Rh3+ {[%clk 0:00:16]} 42. Kg1 {[%clk 0:00:06]}  Rxg2+ {[%clk 0:00:16]} 43. Kxg2 {[%clk 0:00:07]}  Rxh4 {[%clk 0:00:16]} 44. Bf2 {[%clk 0:00:06]}  Rc4 {[%clk 0:00:17]} 45. Be3 {[%clk 0:00:06]}  b5 {[%clk 0:00:17]} 46. Kf2 {[%clk 0:00:06]}  b4 {[%clk 0:00:17]} 47. Ke2 {[%clk 0:00:07]}  b3 {[%clk 0:00:18]} 48. Kd3 {[%clk 0:00:08]}  Rc7 {[%clk 0:00:17]} 49. Bd4 {[%clk 0:00:07]}  Rb7 {[%clk 0:00:17]} 50. Kc3 {[%clk 0:00:07]}  Ne6 {[%clk 0:00:17]} 51. Be5 {[%clk 0:00:03]}  b2 {[%clk 0:00:17]} 0-1


[Site "https://www.chess.com"]